fUSD/lending_fUSD_20250309
["ID","MTS","AMOUNT","RATE_DAILY","PERIOD"]
[355779322,1741555842236,-500.0,9.783e-05,2]
[355779324,1741555842245,-231717.74409062,9.784e-05,2]
[355779326,1741555842254,-5493.7758372,9.785e-05,2]
[355779328,1741555842263,-500.0,9.8e-05,3]
[355779330,1741555842273,-733.42,9.887e-05,2]
[355779332,1741555842282,-1224.12,9.887e-05,2]
[355779334,1741555842292,-582.82,9.887e-05,2]
[355779336,1741555842301,-500.0,9.887e-05,2]
[355779338,1741555842311,-677.81,9.887e-05,2]
[355779340,1741555842320,-874.68,9.887e-05,2]
[355779342,1741555842329,-1040.13,9.887e-05,2]
[355779344,1741555842339,-1044.21,9.887e-05,2]
[355779346,1741555842348,-579.07,9.887e-05,2]
[355779348,1741555842358,-500.0,9.887e-05,2]
[355779350,1741555842368,-500.0,9.887e-05,2]
[355779352,1741555842378,-1244.75,9.887e-05,2]
[355779354,1741555842388,-1667.57,9.887e-05,2]
[355779356,1741555842398,-1000.71,9.887e-05,2]
[355779358,1741555842407,-683.27,9.887e-05,2]
[355779360,1741555842416,-675.08,9.887e-05,2]
[355779362,1741555842426,-500.0,9.887e-05,2]
[355779364,1741555842436,-677.49,9.887e-05,2]
[355779366,1741555842446,-500.0,9.887e-05,2]
[355779368,1741555842455,-585.43,9.887e-05,2]
[355779370,1741555842465,-609.2,9.887e-05,2]
[355779372,1741555842474,-610.4,9.887e-05,2]
[355779374,1741555842484,-544.23,9.887e-05,2]
[355779376,1741555842494,-500.0,9.887e-05,2]
[355779378,1741555842503,-500.0,9.887e-05,2]
[355779380,1741555842513,-946.52,9.887e-05,2]
[355779382,1741555842522,-2888.68,9.887e-05,2]
[355779384,1741555842532,-3032.121086,9.9e-05,2]
[355779386,1741555842541,-1000.0,9.9e-05,2]
[355779388,1741555842551,-500.0,9.9e-05,3]
[355779390,1741555842560,-1000.0,9.9e-05,2]
[355779392,1741555842569,-2624.0,9.973e-05,2]
[355779394,1741555842578,-500.0,9.973e-05,2]
[355779396,1741555842587,-500.0,9.973e-05,2]
[355779398,1741555842597,-152.92773352,9.973e-05,2]
[355779400,1741555842606,-165.50917551,9.973e-05,2]
[355779402,1741555842615,-7184.7636501,9.998e-05,2]
[355779405,1741555842625,-688.4411269,9.998e-05,2]
[355779408,1741555842634,-8745.6856508,9.998e-05,2]
[355779410,1741555842644,-9266.6319395,9.998e-05,2]
[355779412,1741555842653,-413.2011937,9.998e-05,2]
[355779414,1741555842662,-381.0501,9.999e-05,2]
[355779416,1741555842671,-1000.0,9.999e-05,2]
[355779417,1741555842680,-1798.42,9.999e-05,2]
[355779419,1741555842689,-244.16238173,9.999e-05,2]
[355779421,1741555842698,-2187.0,0.0001,2]
[355779423,1741555842708,-81358.4261707,0.0001,2]
[355779425,1741555842717,-438256.38440703,0.0001,2]
[355779449,1741555842937,-500.0,9.339e-05,2]
[355779451,1741555842947,-500.0,9.613e-05,2]
[355779453,1741555842957,-1012.0,9.618e-05,2]
[355779455,1741555842966,-179050.41530563,0.0001,2]
[355779458,1741555842977,-815410.5788543,0.0001,2]
[355779460,1741555842989,-109103.26335898,0.0001,2]
[355779470,1741555843083,-0.01950885,9.887e-05,2]
[355779473,1741555843097,-499.98049115,9.887e-05,2]
[355779475,1741555843107,-736725.29551155,0.0001,2]
[355779477,1741555843118,-3479.88199224,0.0001,2]
[355779636,1741555844480,-500.0,9.339e-05,2]
[355779638,1741555844492,-561.84,9.498e-05,2]
[355779639,1741555844501,-500.0,9.498e-05,2]
[355779642,1741555844511,-500.0,9.772e-05,2]
[355779643,1741555844520,-1445.356489,0.0001,2]
[355779646,1741555844531,-1718.02,0.0001,2]
[355779648,1741555844545,-2669.26,0.0001,2]
[355779650,1741555844556,-935.39771555,0.0001,2]
[355779771,1741555845623,-990.22,0.0001,2]
[355779774,1741555845635,-152771.75455005,0.0001,2]
[355779777,1741555845646,-1645.8934959,0.0001,2]
[355779780,1741555845657,-10119.97928358,0.0001,2]
[355779830,1741555845946,-431.63401684,9.339e-05,2]
[355779843,1741555846066,-68.36598316,9.339e-05,2]
[355779845,1741555846079,-150.0,9.618e-05,2]
[355779847,1741555846089,-8115.74201684,0.0001,2]
[355779849,1741555846100,-475.72044319,0.0001,2]
[355779851,1741555846112,-594.6219608,0.0001,2]
[355779855,1741555846136,-1639.96634934,0.0001,2]
[355779857,1741555846149,-5162.279244,0.0001,2]
[355779868,1741555846257,-742.40338982,0.0001,2]
[355779870,1741555846270,-1267.65164599,0.0001,2]
[355780124,1741556486576,370.031006,0.00028,120]
[355780126,1741556699431,226.7721669,0.00027552,30]
[355780129,1741556836803,161.97,8.219e-05,2]
[355780194,1741556915483,157.03,8.204e-05,2]
[355780204,1741557005388,-5571.98895259,8.204e-05,2]
[355780209,1741557032223,-405.70529999,8.204e-05,2]
[355780232,1741557038004,-2381.49574742,8.204e-05,2]
[355780233,1741557038016,-150.0,8.212e-05,2]
[355780234,1741557038026,-1411.19,8.219e-05,2]
[355780235,1741557038039,-300.0,8.29e-05,2]
[355780236,1741557038052,-732.16,8.292e-05,2]
[355780237,1741557038065,-150.0,8.303e-05,2]
[355780238,1741557038075,-160.29,8.724e-05,2]
[355780239,1741557038085,-160.29,8.772e-05,2]
[355780240,1741557038094,-160.29,8.82e-05,2]
[355780241,1741557038106,-449.9,8.851e-05,2]
[355780242,1741557038116,-160.29,8.867e-05,2]
[355780243,1741557038127,-250.0,8.894e-05,2]
[355780244,1741557038138,-3743.71,8.894e-05,2]
[355780245,1741557038150,-160.29,8.915e-05,2]
[355780246,1741557038162,-160.29,8.962e-05,2]
[355780247,1741557038172,-550.0,9e-05,2]
[355780248,1741557038183,-300.0,9.009e-05,2]
[355780249,1741557038194,-160.29,9.01e-05,2]
[355780250,1741557038205,-150.0,9.024e-05,2]
[355780251,1741557038217,-1000.0,9.047e-05,2]
[355780252,1741557038227,-160.29,9.057e-05,2]
[355780253,1741557038241,-160.29,9.105e-05,2]
[355780254,1741557038251,-420.0,9.119e-05,2]
[355780255,1741557038262,-160.29,9.153e-05,2]
[355780256,1741557038272,-160.29,9.2e-05,2]
[355780257,1741557038283,-3556.29825069,9.24e-05,2]
[355780258,1741557038310,-329.948,9.24e-05,2]
[355780260,1741557038334,-5995.96230711,9.24e-05,2]
[355780431,1741557040106,-610.41,9.24e-05,2]
[355780433,1741557040118,-989.91647308,9.24e-05,2]
[355780435,1741557040132,-6259.28580405,9.24e-05,2]
[355780437,1741557040145,-311.31760804,9.24e-05,2]
[355780458,1741557040370,-3662.534873,9.24e-05,2]
[355780460,1741557040383,-1294.5682744,9.24e-05,2]
[355780463,1741557040461,-3212.23790963,9.24e-05,2]
[355780464,1741557040473,-160.29,9.248e-05,2]
[355780465,1741557040486,-150.0,9.248e-05,2]
[355780466,1741557040498,-732.16,9.329e-05,2]
[355780467,1741557040509,-2954.363,9.338e-05,2]
[355780468,1741557040521,-167.327,9.338e-05,2]
[355780469,1741557040531,-500.0,9.339e-05,2]
[355780470,1741557040542,-500.0,9.339e-05,2]
[355780471,1741557040553,-597.16,9.339e-05,2]
[355780473,1741557040564,-261.57,9.339e-05,2]
[355780475,1741557040574,-500.0,9.339e-05,2]
[355780477,1741557040585,-500.0,9.339e-05,2]
[355780479,1741557040596,-535.26,9.339e-05,2]
[355780481,1741557040607,-160.27336276,9.473e-05,2]
[355780484,1741557040618,-262.19097513,9.473e-05,2]
[355780486,1741557040629,-351.81362702,9.473e-05,2]
[355780488,1741557040639,-160.11577162,9.473e-05,2]
[355780490,1741557040650,-153.21116,9.499e-05,2]
[355780492,1741557040661,-331.513548,9.499e-05,2]
[355780494,1741557040672,-500.0,9.499e-05,2]
[355780496,1741557040682,-500.0,9.499e-05,2]
[355780499,1741557040693,-500.0,9.499e-05,2]
[355780501,1741557040704,-500.0,9.499e-05,2]
[355780503,1741557040714,-500.0,9.499e-05,2]
[355780505,1741557040725,-240.16475687,9.499e-05,2]
[355780507,1741557040736,-414.86522254,9.499e-05,2]
[355780509,1741557040746,-500.0,9.499e-05,2]
[355780511,1741557040757,-500.0,9.499e-05,2]
[355780513,1741557040767,-500.0,9.499e-05,2]
[355780515,1741557040778,-500.0,9.499e-05,2]
[355780518,1741557040788,-500.0,9.499e-05,2]
[355780520,1741557040799,-500.0,9.499e-05,2]
[355780522,1741557040810,-376.64481912,9.499e-05,2]
[355780524,1741557040820,-500.0,9.499e-05,2]
[355780526,1741557040831,-500.0,9.499e-05,2]
[355780528,1741557040842,-500.0,9.499e-05,2]
[355780530,1741557040853,-500.0,9.499e-05,2]
[355780532,1741557040864,-500.0,9.499e-05,2]
[355780535,1741557040874,-500.0,9.499e-05,2]
[355780537,1741557040885,-500.0,9.499e-05,2]
[355780539,1741557040895,-500.0,9.499e-05,2]
[355780541,1741557040906,-500.0,9.499e-05,2]
[355780543,1741557040917,-500.0,9.499e-05,2]
[355780545,1741557040929,-500.0,9.499e-05,2]
[355780547,1741557040940,-500.0,9.499e-05,2]
[355780549,1741557040951,-166.44,9.499e-05,2]
[355780552,1741557040961,-500.0,9.499e-05,2]
[355780554,1741557040972,-500.0,9.499e-05,2]
[355780556,1741557040982,-500.0,9.499e-05,2]
[355780558,1741557040992,-500.0,9.499e-05,2]
[355780560,1741557041003,-500.0,9.499e-05,2]
[355780562,1741557041014,-500.0,9.499e-05,2]
[355780564,1741557041024,-500.0,9.499e-05,2]
[355780566,1741557041035,-500.0,9.499e-05,2]
[355780568,1741557041045,-500.0,9.499e-05,2]
[355780570,1741557041055,-500.0,9.499e-05,2]
[355780572,1741557041065,-500.0,9.499e-05,2]
[355780575,1741557041075,-500.0,9.499e-05,2]
[355780577,1741557041085,-500.0,9.499e-05,2]
[355780579,1741557041096,-500.0,9.499e-05,2]
[355780581,1741557041107,-500.0,9.499e-05,2]
[355780583,1741557041118,-500.0,9.499e-05,2]
[355780585,1741557041128,-500.0,9.499e-05,2]
[355780587,1741557041140,-500.0,9.499e-05,2]
[355780589,1741557041151,-500.0,9.499e-05,2]
[355780592,1741557041162,-500.0,9.499e-05,2]
[355780594,1741557041172,-640.79,9.499e-05,2]
[355780596,1741557041181,-222.37441362,9.499e-05,2]
[355780598,1741557041192,-669.84,9.499e-05,2]
[355780600,1741557041203,-500.0,9.499e-05,2]
[355780602,1741557041214,-500.0,9.499e-05,2]
[355780604,1741557041224,-500.0,9.499e-05,2]
[355780606,1741557041234,-500.0,9.499e-05,2]
[355780608,1741557041245,-500.0,9.499e-05,2]
[355780611,1741557041256,-644.09,9.499e-05,2]
[355780613,1741557041267,-500.0,9.499e-05,2]
[355780615,1741557041279,-613.06,9.499e-05,2]
[355780617,1741557041289,-787.88,9.499e-05,2]
[355780619,1741557041299,-1544.02,9.499e-05,2]
[355780621,1741557041309,-1252.41,9.499e-05,2]
[355780623,1741557041321,-5403.93,9.499e-05,2]
[355780625,1741557041332,-500.0,9.499e-05,2]
[355780627,1741557041343,-500.0,9.499e-05,2]
[355780630,1741557041362,-500.0,9.499e-05,2]
[355780632,1741557041372,-500.0,9.499e-05,2]
[355780634,1741557041382,-500.0,9.499e-05,2]
[355780636,1741557041392,-500.0,9.499e-05,2]
[355780638,1741557041403,-500.0,9.499e-05,2]
[355780640,1741557041413,-583.16,9.499e-05,2]
[355780642,1741557041423,-500.0,9.499e-05,2]
[355780644,1741557041436,-610.68,9.499e-05,2]
[355780646,1741557041448,-906.67,9.499e-05,2]
[355780648,1741557041458,-500.0,9.499e-05,2]
[355780650,1741557041469,-500.0,9.499e-05,2]
[355780652,1741557041482,-724.21,9.499e-05,2]
[355780655,1741557041492,-500.0,9.499e-05,2]
[355780691,1741557041823,-500.0,9.499e-05,2]
[355780694,1741557041845,-500.0,9.499e-05,2]
[355780696,1741557041860,-508.76,9.499e-05,2]
[355780698,1741557041870,-500.0,9.499e-05,2]
[355780700,1741557041879,-1023.14,9.499e-05,2]
[355780702,1741557041888,-500.0,9.499e-05,2]
[355780704,1741557041898,-500.0,9.499e-05,2]
[355780706,1741557041907,-713.56,9.499e-05,2]
[355780708,1741557041916,-500.0,9.499e-05,2]
[355780710,1741557041926,-175.870171,9.499e-05,2]
[355780712,1741557041936,-646.36,9.499e-05,2]
[355780714,1741557041945,-500.0,9.499e-05,2]
[355780716,1741557041954,-641.75,9.499e-05,2]
[355780718,1741557041963,-500.0,9.499e-05,2]
[355780720,1741557041973,-509.97,9.499e-05,2]
[355780722,1741557041982,-1148.82,9.499e-05,2]
[355780724,1741557041991,-1111.91,9.499e-05,2]
[355780726,1741557042000,-1082.68,9.499e-05,2]
[355780728,1741557042009,-500.0,9.499e-05,2]
[355780730,1741557042019,-500.0,9.499e-05,2]
[355780732,1741557042028,-500.0,9.499e-05,2]
[355780734,1741557042038,-500.0,9.499e-05,2]
[355780736,1741557042047,-1840.27,9.499e-05,2]
[355780738,1741557042057,-500.0,9.499e-05,2]
[355780740,1741557042066,-1350.57,9.499e-05,2]
[355780742,1741557042075,-765.34,9.499e-05,2]
[355780744,1741557042085,-500.0,9.499e-05,2]
[355780746,1741557042094,-500.0,9.499e-05,2]
[355780748,1741557042104,-5821.93,9.499e-05,2]
[355780750,1741557042114,-500.0,9.499e-05,2]
[355780752,1741557042123,-524.0,9.499e-05,2]
[355780754,1741557042132,-913.69,9.499e-05,2]
[355780756,1741557042141,-593.09,9.499e-05,2]
[355780758,1741557042150,-500.0,9.499e-05,2]
[355780760,1741557042159,-500.0,9.499e-05,2]
[355780762,1741557042169,-500.0,9.499e-05,2]
[355780764,1741557042178,-500.0,9.499e-05,2]
[355780766,1741557042188,-500.0,9.499e-05,2]
[355780768,1741557042197,-3084.68,9.499e-05,2]
[355780770,1741557042206,-676.29,9.499e-05,2]
[355780772,1741557042216,-910.11,9.499e-05,2]
[355780774,1741557042225,-500.0,9.499e-05,2]
[355780776,1741557042235,-1459.12,9.499e-05,2]
[355780778,1741557042244,-500.0,9.499e-05,2]
[355780780,1741557042253,-506.68,9.499e-05,2]
[355780782,1741557042262,-875.62,9.499e-05,2]
[355780784,1741557042271,-2114.67,9.499e-05,2]
[355780786,1741557042281,-1089.15,9.499e-05,2]
[355780788,1741557042290,-590.69,9.499e-05,2]
[355780790,1741557042300,-767.73,9.499e-05,2]
[355780792,1741557042309,-815.02,9.499e-05,2]
[355780794,1741557042318,-500.0,9.499e-05,2]
[355780796,1741557042328,-5057.27,9.499e-05,2]
[355780798,1741557042340,-597.86,9.499e-05,2]
[355780800,1741557042349,-592.81,9.499e-05,2]
[355780802,1741557042360,-569.48,9.499e-05,2]
[355780804,1741557042370,-593.95,9.499e-05,2]
[355780806,1741557042379,-512.25,9.499e-05,2]
[355780808,1741557042389,-500.0,9.499e-05,2]
[355780810,1741557042398,-534.1,9.499e-05,2]
[355780812,1741557042407,-1028.43,9.499e-05,2]
[355780814,1741557042416,-500.0,9.499e-05,2]
[355780816,1741557042426,-500.0,9.499e-05,2]
[355780818,1741557042440,-528.62,9.499e-05,2]
[355780820,1741557042449,-500.0,9.499e-05,2]
[355780822,1741557042459,-500.0,9.499e-05,2]
[355780824,1741557042468,-500.0,9.499e-05,2]
[355780826,1741557042478,-2527.59,9.499e-05,2]
[355780828,1741557042487,-1378.32,9.499e-05,2]
[355780830,1741557042497,-1042.64,9.499e-05,2]
[355780832,1741557042508,-500.0,9.499e-05,2]
[355780834,1741557042518,-828.21,9.499e-05,2]
[355780836,1741557042528,-500.0,9.499e-05,2]
[355780838,1741557042538,-609.54,9.499e-05,2]
[355780840,1741557042547,-620.04,9.499e-05,2]
[355780842,1741557042557,-500.0,9.499e-05,2]
[355780844,1741557042567,-813.55,9.499e-05,2]
[355780846,1741557042576,-500.0,9.499e-05,2]
[355780848,1741557042586,-1442.32,9.499e-05,2]
[355780850,1741557042595,-610696.11026539,9.5e-05,2]
[355780874,1741557042818,-434.55610596,9.5e-05,2]
[355781033,1741557044355,-66853.29846258,9.5e-05,2]
[355781035,1741557044364,-5000.0,9.513e-05,2]
[355781037,1741557044373,-500.0,9.613e-05,2]
[355781039,1741557044382,-500.0,9.613e-05,2]
[355781041,1741557044391,-1278.0,9.684e-05,2]
[355781043,1741557044400,-2032.0,9.684e-05,2]
[355781045,1741557044411,-641.0,9.684e-05,2]
[355781047,1741557044420,-1459.0,9.684e-05,2]
[355781049,1741557044430,-36.70153742,9.684e-05,2]
[355781206,1741557046026,-1200.23,9.499e-05,2]
[355781208,1741557046036,-534.29846258,9.684e-05,2]
[355781210,1741557046046,-786.0,9.684e-05,2]
[355781212,1741557046055,-209.675,9.684e-05,2]
[355781214,1741557046064,-1428.0,9.684e-05,2]
[355781216,1741557046074,-541.0,9.684e-05,2]
[355781218,1741557046083,-184.424,9.684e-05,2]
[355781220,1741557046093,-150.0,9.684e-05,2]
[355781222,1741557046102,-3932.0,9.684e-05,2]
[355781224,1741557046113,-1113.0,9.684e-05,2]
[355781227,1741557046124,-1000.0,9.7e-05,2]
[355781228,1741557046134,-153.21116,9.773e-05,2]
[355781231,1741557046144,-331.513548,9.773e-05,2]
[355781233,1741557046153,-251.94348491,9.773e-05,2]
[355781252,1741557046339,-500.0,9.773e-05,2]
[355781254,1741557046349,-500.0,9.773e-05,2]
[355781256,1741557046359,-500.0,9.773e-05,2]
[355781257,1741557046369,-500.0,9.773e-05,2]
[355781259,1741557046379,-500.0,9.773e-05,2]
[355781261,1741557046389,-500.0,9.773e-05,2]
[355781263,1741557046398,-500.0,9.773e-05,2]
[355781265,1741557046407,-500.0,9.773e-05,2]
[355781267,1741557046416,-541.58,9.773e-05,2]
[355781269,1741557046426,-500.0,9.773e-05,2]
[355781271,1741557046437,-500.0,9.773e-05,2]
[355781273,1741557046447,-500.0,9.773e-05,2]
[355781275,1741557046457,-500.0,9.773e-05,2]
[355781277,1741557046466,-500.0,9.773e-05,2]
[355781279,1741557046475,-500.0,9.773e-05,2]
[355781281,1741557046486,-500.0,9.773e-05,2]
[355781283,1741557046495,-291.64064681,9.773e-05,2]
[355781285,1741557046504,-500.0,9.773e-05,2]
[355781287,1741557046514,-500.0,9.773e-05,2]
[355781289,1741557046523,-500.0,9.773e-05,2]
[355781291,1741557046532,-500.0,9.773e-05,2]
[355781292,1741557046542,-500.0,9.773e-05,2]
[355781294,1741557046551,-500.0,9.773e-05,2]
[355781296,1741557046560,-500.0,9.773e-05,2]
[355781298,1741557046569,-500.0,9.773e-05,2]
[355781300,1741557046578,-500.0,9.773e-05,2]
[355781302,1741557046587,-500.0,9.773e-05,2]
[355781304,1741557046596,-500.0,9.773e-05,2]
[355781306,1741557046606,-500.0,9.773e-05,2]
[355781308,1741557046615,-500.0,9.773e-05,2]
[355781310,1741557046625,-339.14446603,9.773e-05,2]
[355781312,1741557046634,-640.79,9.773e-05,2]
[355781314,1741557046644,-669.84,9.773e-05,2]
[355781316,1741557046654,-500.0,9.773e-05,2]
[355781318,1741557046663,-500.0,9.773e-05,2]
[355781320,1741557046673,-500.0,9.773e-05,2]
[355781322,1741557046683,-644.09,9.773e-05,2]
[355781324,1741557046692,-500.0,9.773e-05,2]
[355781326,1741557046702,-613.06,9.773e-05,2]
[355781328,1741557046711,-1544.02,9.773e-05,2]
[355781330,1741557046721,-5403.93,9.773e-05,2]
[355781332,1741557046730,-500.0,9.773e-05,2]
[355781334,1741557046739,-500.0,9.773e-05,2]
[355781336,1741557046749,-500.0,9.773e-05,2]
[355781338,1741557046758,-500.0,9.773e-05,2]
[355781340,1741557046768,-500.0,9.773e-05,2]
[355781342,1741557046777,-583.16,9.773e-05,2]
[355781344,1741557046786,-500.0,9.773e-05,2]
[355781346,1741557046795,-610.68,9.773e-05,2]
[355781348,1741557046804,-906.67,9.773e-05,2]
[355781350,1741557046813,-500.0,9.773e-05,2]
[355781352,1741557046825,-724.21,9.773e-05,2]
[355781354,1741557046834,-500.0,9.773e-05,2]
[355781356,1741557046843,-500.0,9.773e-05,2]
[355781358,1741557046853,-508.76,9.773e-05,2]
[355781360,1741557046863,-500.0,9.773e-05,2]
[355781362,1741557046873,-1023.14,9.773e-05,2]
[355781364,1741557046882,-500.0,9.773e-05,2]
[355781366,1741557046891,-713.56,9.773e-05,2]
[355781368,1741557046900,-646.36,9.773e-05,2]
[355781370,1741557046910,-641.75,9.773e-05,2]
[355781372,1741557046919,-509.97,9.773e-05,2]
[355781374,1741557046929,-1148.82,9.773e-05,2]
[355781376,1741557046938,-1111.91,9.773e-05,2]
[355781378,1741557046947,-1082.68,9.773e-05,2]
[355781380,1741557046956,-500.0,9.773e-05,2]
[355781382,1741557046966,-500.0,9.773e-05,2]
[355781384,1741557046975,-1840.27,9.773e-05,2]
[355781386,1741557046985,-1350.57,9.773e-05,2]
[355781388,1741557046994,-765.34,9.773e-05,2]
[355781390,1741557047003,-165.14266688,9.773e-05,2]
[355781392,1741557047012,-500.0,9.773e-05,2]
[355781394,1741557047021,-5821.93,9.773e-05,2]
[355781396,1741557047031,-524.0,9.773e-05,2]
[355781398,1741557047040,-913.69,9.773e-05,2]
[355781399,1741557047049,-593.09,9.773e-05,2]
[355781401,1741557047059,-500.0,9.773e-05,2]
[355781404,1741557047068,-500.0,9.773e-05,2]
[355781405,1741557047078,-500.0,9.773e-05,2]
[355781407,1741557047087,-3084.68,9.773e-05,2]
[355781409,1741557047097,-676.29,9.773e-05,2]
[355781411,1741557047107,-910.11,9.773e-05,2]
[355781413,1741557047117,-500.0,9.773e-05,2]
[355781415,1741557047126,-1459.12,9.773e-05,2]
[355781417,1741557047136,-500.0,9.773e-05,2]
[355781419,1741557047145,-506.68,9.773e-05,2]
[355781421,1741557047155,-875.62,9.773e-05,2]
[355781423,1741557047165,-1089.15,9.773e-05,2]
[355781425,1741557047176,-2114.67,9.773e-05,2]
[355781427,1741557047186,-590.69,9.773e-05,2]
[355781429,1741557047195,-767.73,9.773e-05,2]
[355781431,1741557047204,-815.02,9.773e-05,2]
[355781433,1741557047214,-500.0,9.773e-05,2]
[355781435,1741557047223,-5057.27,9.773e-05,2]
[355781437,1741557047232,-597.86,9.773e-05,2]
[355781439,1741557047242,-592.81,9.773e-05,2]
[355781441,1741557047251,-569.48,9.773e-05,2]
[355781443,1741557047260,-593.95,9.773e-05,2]
[355781445,1741557047269,-512.25,9.773e-05,2]
[355781447,1741557047279,-500.0,9.773e-05,2]
[355781449,1741557047289,-534.1,9.773e-05,2]
[355781451,1741557047299,-1028.43,9.773e-05,2]
[355781453,1741557047308,-500.0,9.773e-05,2]
[355781455,1741557047318,-500.0,9.773e-05,2]
[355781457,1741557047327,-528.62,9.773e-05,2]
[355781459,1741557047336,-500.0,9.773e-05,2]
[355781461,1741557047346,-500.0,9.773e-05,2]
[355781463,1741557047355,-500.0,9.773e-05,2]
[355781465,1741557047366,-2527.59,9.773e-05,2]
[355781467,1741557047376,-1378.32,9.773e-05,2]
[355781469,1741557047385,-1042.64,9.773e-05,2]
[355781471,1741557047395,-828.21,9.773e-05,2]
[355781473,1741557047405,-499.98049115,9.773e-05,2]
[355781475,1741557047414,-609.54,9.773e-05,2]
[355781477,1741557047425,-620.04,9.773e-05,2]
[355781479,1741557047436,-500.0,9.773e-05,2]
[355781481,1741557047445,-813.55,9.773e-05,2]
[355781483,1741557047457,-500.0,9.773e-05,2]
[355781485,1741557047467,-1442.32,9.773e-05,2]
[355781487,1741557047476,-1200.23,9.773e-05,2]
[355781489,1741557047486,-1000.0,9.8e-05,2]
[355781491,1741557047496,-314.75,9.887e-05,2]
[355781493,1741557047505,-9805.8786,9.9e-05,2]
[355781495,1741557047515,-220.74847364,9.9e-05,2]
[355781499,1741557047547,-779.25152636,9.9e-05,2]
[355781501,1741557047557,-917.65145787,9.998e-05,2]
[355781503,1741557047568,-2860.0,9.998e-05,2]
[355781505,1741557047580,-1682.58458083,9.998e-05,2]
[355781507,1741557047589,-344.3343281,9.998e-05,2]
[355781509,1741557047599,-446.6835512,9.998e-05,2]
[355781511,1741557047609,-649.00160605,9.998e-05,2]
[355781514,1741557047625,-2963.71323245,9.998e-05,2]
[355781516,1741557047635,-1442.53676755,9.998e-05,2]
[355781519,1741557047653,-784.54080515,9.998e-05,2]
[355781521,1741557047663,-500.0,9.999e-05,2]
[355781523,1741557047672,-195.4401615,9.999e-05,2]
[355781525,1741557047682,-500.0,9.999e-05,2]
[355781527,1741557047692,-188.50927958,9.999e-05,2]
[355781528,1741557047703,-500.0,9.999e-05,2]
[355781530,1741557047712,-531.74101998,9.999e-05,2]
[355781532,1741557047722,-500.0,9.999e-05,2]
[355781534,1741557047732,-500.0,9.999e-05,2]
[355781536,1741557047742,-500.0,9.999e-05,2]
[355781539,1741557047752,-500.0,9.999e-05,2]
[355781540,1741557047761,-1000.0,9.999e-05,2]
[355781542,1741557047771,-1723.49,9.999e-05,2]
[355781544,1741557047780,-538.57873379,9.999e-05,2]
[355781627,1741557511765,-250.0,9.112e-05,2]
[355781628,1741557511792,-50.0,9.118e-05,2]
[355781629,1741557518227,-100.0,9.118e-05,2]
[355781630,1741557518249,-50.00254486,9.124e-05,2]
[355781631,1741557524724,-149.99745514,9.124e-05,2]
[355781632,1741557524747,-440.42254486,9.132e-05,2]
[355781633,1741557526764,-559.57745514,9.132e-05,2]
[355781634,1741557531280,-150.0,9.273e-05,2]
[355781635,1741557531302,-236.32499576,9.498e-05,2]
[355781636,1741557531330,-150.0,9.498e-05,2]
[355781637,1741557531353,-236.32499574,9.499e-05,2]
[355781638,1741557531375,-218.79551569,9.499e-05,2]
[355781639,1741557531397,-423.90449281,9.499e-05,2]
[355781640,1741557539737,-76.09550719,9.499e-05,2]
[355781641,1741557539760,-423.90449281,9.499e-05,2]
[355781642,1741557542691,-300.0,9.498e-05,2]
[355781643,1741557542715,-76.09550719,9.499e-05,2]
[355781644,1741557542739,-123.90449281,9.499e-05,2]
[355781645,1741557654915,-357.74,9.016e-05,2]
[355781646,1741557654937,-150.0,9.258e-05,2]
[355781647,1741557654960,-300.0,9.498e-05,2]
[355781648,1741557654981,-150.0,9.498e-05,2]
[355781649,1741557655226,-376.09550719,9.499e-05,2]
[355781650,1741557655250,-500.0,9.499e-05,2]
[355781651,1741557655273,-500.0,9.499e-05,2]
[355781652,1741557655294,-500.0,9.499e-05,2]
[355781653,1741557655315,-500.0,9.499e-05,2]
[355781654,1741557655337,-500.0,9.499e-05,2]
[355781655,1741557655358,-500.0,9.499e-05,2]